[Event "Titled Tuesday Blitz August 31 2021"]
[White "Pajeken, Jakob Leon"]
[Black "Khusnutdinov, Rustam"]
[WhiteFideId "12942839"]
[BlackFideId "13701703"]
[WhiteElo "2231"]
[BlackElo "2571"]
[Result "1-0"]
[Round "01"]
[TimeControl "180+1"]
[Date "2021.08.31"]
[WhiteClock "0:00:17"]
[BlackClock "0:00:51"]

1. d4 {[%clk 0:03:00]}  d5 {[%clk 0:02:56]} 2. Nf3 {[%clk 0:02:58]}  e6 {[%clk 0:02:55]} 3. Bf4 {[%clk 0:02:56]}  c5 {[%clk 0:02:50]} 4. e3 {[%clk 0:02:52]}  Nc6 {[%clk 0:02:40]} 5. Nbd2 {[%clk 0:02:48]}  Nf6 {[%clk 0:02:36]} 6. c3 {[%clk 0:02:47]}  Be7 {[%clk 0:02:34]} 7. h3 {[%clk 0:02:46]}  Bd6 {[%clk 0:02:24]} 8. dxc5 {[%clk 0:02:44]}  Bxc5 {[%clk 0:02:19]} 9. Bd3 {[%clk 0:02:42]}  O-O {[%clk 0:02:19]} 10. e4 {[%clk 0:02:37]}  Qb6 {[%clk 0:02:04]} 11. O-O {[%clk 0:02:10]}  Qxb2 {[%clk 0:01:58]} 12. e5 {[%clk 0:02:08]}  Qxc3 {[%clk 0:01:36]} 13. Nb3 {[%clk 0:01:19]}  Nd7 {[%clk 0:01:21]} 14. Bxh7+ {[%clk 0:00:58]}  Kxh7 {[%clk 0:01:22]} 15. Ng5+ {[%clk 0:00:58]}  Kg6 {[%clk 0:01:20]} 16. Rc1 {[%clk 0:00:29]}  Qb4 {[%clk 0:01:16]} 17. Qd3+ {[%clk 0:00:24]}  f5 {[%clk 0:01:15]} 18. exf6+ {[%clk 0:00:24]}  Kxf6 {[%clk 0:01:15]} 19. Nxc5 {[%clk 0:00:19]}  Nxc5 {[%clk 0:01:03]} 20. Qf3 {[%clk 0:00:19]}  Ke7 {[%clk 0:01:03]} 21. Bd6+ {[%clk 0:00:18]}  Kxd6 {[%clk 0:01:00]} 22. Qxf8+ {[%clk 0:00:19]}  Ne7 {[%clk 0:01:01]} 23. Qd8+ {[%clk 0:00:18]}  Nd7 {[%clk 0:00:58]} 24. Rfe1 {[%clk 0:00:17]}  e5 {[%clk 0:00:51]} 25. Qc7# {[%clk 0:00:17]} 1-0


[Site "https://www.chess.com"]

[Event "Titled Tuesday Blitz August 31 2021"]
[White "Petriashvili, Nikoloz"]
[Black "Djokic, Mihailo"]
[WhiteFideId "13611216"]
[BlackFideId "976440"]
[WhiteElo "2430"]
[BlackElo "2054"]
[Result "1-0"]
[Round "01"]
[TimeControl "180+1"]
[Date "2021.08.31"]
[WhiteClock "0:00:18"]
[BlackClock "0:00:02"]

1. e4 {[%clk 0:03:00]}  c5 {[%clk 0:02:58]} 2. Nf3 {[%clk 0:03:01]}  d6 {[%clk 0:02:58]} 3. Bb5+ {[%clk 0:03:00]}  Bd7 {[%clk 0:02:46]} 4. Bxd7+ {[%clk 0:02:56]}  Qxd7 {[%clk 0:02:47]} 5. c4 {[%clk 0:02:56]}  Nc6 {[%clk 0:02:46]} 6. Nc3 {[%clk 0:02:56]}  Nf6 {[%clk 0:02:46]} 7. d4 {[%clk 0:02:57]}  cxd4 {[%clk 0:02:47]} 8. Nxd4 {[%clk 0:02:58]}  g6 {[%clk 0:02:46]} 9. Be3 {[%clk 0:02:57]}  Bg7 {[%clk 0:02:45]} 10. f3 {[%clk 0:02:58]}  O-O {[%clk 0:02:44]} 11. Rc1 {[%clk 0:02:58]}  Rfd8 {[%clk 0:02:45]} 12. O-O {[%clk 0:02:57]}  e6 {[%clk 0:02:44]} 13. Qd2 {[%clk 0:02:54]}  d5 {[%clk 0:02:43]} 14. Nxc6 {[%clk 0:02:52]}  bxc6 {[%clk 0:02:42]} 15. cxd5 {[%clk 0:02:48]}  cxd5 {[%clk 0:02:37]} 16. exd5 {[%clk 0:02:48]}  Nxd5 {[%clk 0:02:36]} 17. Nxd5 {[%clk 0:02:48]}  Qxd5 {[%clk 0:02:36]} 18. Qxd5 {[%clk 0:02:48]}  Rxd5 {[%clk 0:02:37]} 19. Rc2 {[%clk 0:02:49]}  a5 {[%clk 0:02:20]} 20. b3 {[%clk 0:02:41]}  h5 {[%clk 0:02:16]} 21. Rfc1 {[%clk 0:02:39]}  Rd3 {[%clk 0:02:11]} 22. Rc8+ {[%clk 0:02:37]}  Rxc8 {[%clk 0:02:11]} 23. Rxc8+ {[%clk 0:02:38]}  Kh7 {[%clk 0:02:11]} 24. Kf2 {[%clk 0:02:37]}  a4 {[%clk 0:02:02]} 25. Rb8 {[%clk 0:02:26]}  Rc3 {[%clk 0:01:36]} 26. bxa4 {[%clk 0:01:37]}  Ra3 {[%clk 0:01:34]} 27. Ra8 {[%clk 0:01:33]}  Rxa2+ {[%clk 0:01:32]} 28. Kf1 {[%clk 0:01:34]}  Bc3 {[%clk 0:01:19]} 29. Rc8 {[%clk 0:01:28]}  Ba5 {[%clk 0:01:16]} 30. Rc4 {[%clk 0:01:21]}  f5 {[%clk 0:01:06]} 31. Bd4 {[%clk 0:01:18]}  g5 {[%clk 0:01:00]} 32. h3 {[%clk 0:00:52]}  Kg6 {[%clk 0:00:42]} 33. Be5 {[%clk 0:00:49]}  f4 {[%clk 0:00:36]} 34. h4 {[%clk 0:00:47]}  Kf5 {[%clk 0:00:36]} 35. Rc5 {[%clk 0:00:43]}  Bb6 {[%clk 0:00:31]} 36. Rb5 {[%clk 0:00:43]}  Be3 {[%clk 0:00:20]} 37. Bd4+ {[%clk 0:00:40]}  Kg6 {[%clk 0:00:14]} 38. Rxg5+ {[%clk 0:00:40]}  Kh6 {[%clk 0:00:14]} 39. Bxe3 {[%clk 0:00:38]}  fxe3 {[%clk 0:00:15]} 40. Re5 {[%clk 0:00:39]}  Rxa4 {[%clk 0:00:09]} 41. Rxe6+ {[%clk 0:00:23]}  Kg7 {[%clk 0:00:09]} 42. Rxe3 {[%clk 0:00:22]}  Rxh4 {[%clk 0:00:08]} 43. Kf2 {[%clk 0:00:22]}  Ra4 {[%clk 0:00:08]} 44. Kg3 {[%clk 0:00:22]}  Kg6 {[%clk 0:00:08]} 45. Kh3 {[%clk 0:00:22]}  Kg5 {[%clk 0:00:08]} 46. Re5+ {[%clk 0:00:23]}  Kg6 {[%clk 0:00:08]} 47. g3 {[%clk 0:00:23]}  Rb4 {[%clk 0:00:08]} 48. f4 {[%clk 0:00:23]}  Rb1 {[%clk 0:00:07]} 49. Re6+ {[%clk 0:00:23]}  Kg7 {[%clk 0:00:04]} 50. Re5 {[%clk 0:00:18]}  Kg6 {[%clk 0:00:02]} 51. Rg5+ {[%clk 0:00:18]}  Kh6 {[%clk 0:00:02]} 52. Rg8 {[%clk 0:00:17]}  Rh1+ {[%clk 0:00:02]} 53. Kg2 {[%clk 0:00:17]}  Ra1 {[%clk 0:00:03]} 54. Kf3 {[%clk 0:00:16]}  Rf1+ {[%clk 0:00:02]} 55. Ke4 {[%clk 0:00:15]}  Kh7 {[%clk 0:00:02]} 56. Rg5 {[%clk 0:00:14]}  Kh6 {[%clk 0:00:03]} 57. Kf5 {[%clk 0:00:15]}  Ra1 {[%clk 0:00:01]} 58. Rg6+ {[%clk 0:00:15]}  Kh7 {[%clk 0:00:02]} 59. Kg5 {[%clk 0:00:16]}  Ra5+ {[%clk 0:00:01]} 60. f5 {[%clk 0:00:16]}  h4 {[%clk 0:00:01]} 61. Rh6+ {[%clk 0:00:17]}  Kg7 {[%clk 0:00:01]} 62. Rxh4 {[%clk 0:00:17]}  Ra3 {[%clk 0:00:01]} 63. g4 {[%clk 0:00:18]}  Kf7 {[%clk 0:00:01]} 64. Rh7+ {[%clk 0:00:18]}  Kg8 {[%clk 0:00:02]} 65. Rd7 {[%clk 0:00:18]} 1-0


[Site "https://www.chess.com"]

[Event "Titled Tuesday Blitz August 31 2021"]
[White "Pires, Marcos Vinicius Torsani"]
[Black "Andreikin, Dmitry"]
[WhiteFideId "2118939"]
[BlackFideId "4158814"]
[WhiteElo "2273"]
[BlackElo "2782"]
[Result "0-1"]
[Round "01"]
[TimeControl "180+1"]
[Date "2021.08.31"]
[WhiteClock "0:00:12"]
[BlackClock "0:01:44"]

1. d4 {[%clk 0:02:55]}  Nf6 {[%clk 0:02:59]} 2. Nf3 {[%clk 0:02:53]}  e6 {[%clk 0:02:57]} 3. Bf4 {[%clk 0:02:52]}  Nh5 {[%clk 0:02:57]} 4. Bg5 {[%clk 0:02:50]}  f6 {[%clk 0:02:58]} 5. Bh4 {[%clk 0:02:42]}  g5 {[%clk 0:02:57]} 6. Bg3 {[%clk 0:02:42]}  g4 {[%clk 0:02:56]} 7. Nfd2 {[%clk 0:02:38]}  f5 {[%clk 0:02:54]} 8. e3 {[%clk 0:02:36]}  c5 {[%clk 0:02:49]} 9. c3 {[%clk 0:02:30]}  Nc6 {[%clk 0:02:49]} 10. Nc4 {[%clk 0:02:23]}  Nxg3 {[%clk 0:02:43]} 11. hxg3 {[%clk 0:02:22]}  d5 {[%clk 0:02:44]} 12. Ncd2 {[%clk 0:02:11]}  h5 {[%clk 0:02:38]} 13. Bb5 {[%clk 0:02:03]}  Bd7 {[%clk 0:02:34]} 14. Nb3 {[%clk 0:01:56]}  c4 {[%clk 0:02:33]} 15. N3d2 {[%clk 0:01:47]}  h4 {[%clk 0:02:33]} 16. gxh4 {[%clk 0:01:45]}  Rxh4 {[%clk 0:02:32]} 17. Rxh4 {[%clk 0:01:42]}  Qxh4 {[%clk 0:02:33]} 18. Qe2 {[%clk 0:01:42]}  O-O-O {[%clk 0:02:27]} 19. Na3 {[%clk 0:01:33]}  Bxa3 {[%clk 0:02:24]} 20. bxa3 {[%clk 0:01:33]}  g3 {[%clk 0:02:22]} 21. fxg3 {[%clk 0:01:23]}  Qxg3+ {[%clk 0:02:23]} 22. Qf2 {[%clk 0:01:23]}  Qd6 {[%clk 0:02:23]} 23. a4 {[%clk 0:01:13]}  Rg8 {[%clk 0:02:23]} 24. Nf3 {[%clk 0:01:06]}  Qa3 {[%clk 0:02:23]} 25. Qc2 {[%clk 0:00:57]}  Rxg2 {[%clk 0:02:19]} 26. Qxg2 {[%clk 0:00:58]}  Qxc3+ {[%clk 0:02:19]} 27. Kf2 {[%clk 0:00:49]}  Qb2+ {[%clk 0:02:16]} 28. Kg3 {[%clk 0:00:45]}  Qxa1 {[%clk 0:02:17]} 29. Bxc6 {[%clk 0:00:45]}  bxc6 {[%clk 0:02:12]} 30. Kf4 {[%clk 0:00:40]}  Qb1 {[%clk 0:02:12]} 31. Qg8+ {[%clk 0:00:38]}  Kc7 {[%clk 0:02:12]} 32. Qg3 {[%clk 0:00:24]}  c3 {[%clk 0:01:58]} 33. Kg5+ {[%clk 0:00:17]}  Kc8 {[%clk 0:01:58]} 34. Qd6 {[%clk 0:00:16]}  Qb8 {[%clk 0:01:51]} 35. Qf8+ {[%clk 0:00:16]}  Kc7 {[%clk 0:01:49]} 36. Qf6 {[%clk 0:00:13]}  c2 {[%clk 0:01:44]} 37. Qe5+ {[%clk 0:00:12]}  Kb7 {[%clk 0:01:44]} 0-1


[Site "https://www.chess.com"]

[Event "Titled Tuesday Blitz August 31 2021"]
[White "Pridorozhni, Aleksei"]
[Black "Petukhov, Dmitry"]
[WhiteFideId "4127870"]
[BlackFideId "4142748"]
[WhiteElo "2565"]
[BlackElo "2356"]
[Result "1-0"]
[Round "01"]
[TimeControl "180+1"]
[Date "2021.08.31"]
[WhiteClock "0:02:32"]
[BlackClock "0:01:15"]

1. e4 {[%clk 0:03:00]}  c5 {[%clk 0:02:59]} 2. Nc3 {[%clk 0:03:00]}  Nc6 {[%clk 0:02:57]} 3. Bb5 {[%clk 0:03:00]}  d6 {[%clk 0:02:53]} 4. Bxc6+ {[%clk 0:02:59]}  bxc6 {[%clk 0:02:48]} 5. d3 {[%clk 0:03:00]}  e5 {[%clk 0:02:47]} 6. f4 {[%clk 0:02:59]}  exf4 {[%clk 0:02:42]} 7. Bxf4 {[%clk 0:03:00]}  Ne7 {[%clk 0:02:40]} 8. Nf3 {[%clk 0:02:58]}  Ng6 {[%clk 0:02:40]} 9. Bg3 {[%clk 0:02:58]}  Be7 {[%clk 0:02:40]} 10. O-O {[%clk 0:02:55]}  O-O {[%clk 0:02:40]} 11. Qd2 {[%clk 0:02:55]}  Bf6 {[%clk 0:02:32]} 12. Rae1 {[%clk 0:02:54]}  Bg4 {[%clk 0:02:20]} 13. Nd1 {[%clk 0:02:47]}  Re8 {[%clk 0:02:07]} 14. Ne3 {[%clk 0:02:42]}  Bxf3 {[%clk 0:02:04]} 15. Rxf3 {[%clk 0:02:43]}  Bxb2 {[%clk 0:02:02]} 16. c3 {[%clk 0:02:43]}  Rb8 {[%clk 0:01:57]} 17. Nc4 {[%clk 0:02:42]}  d5 {[%clk 0:01:45]} 18. Nxb2 {[%clk 0:02:41]}  dxe4 {[%clk 0:01:44]} 19. Rfe3 {[%clk 0:02:40]}  f5 {[%clk 0:01:32]} 20. Bxb8 {[%clk 0:02:39]}  Qxb8 {[%clk 0:01:33]} 21. Nc4 {[%clk 0:02:38]}  Ne5 {[%clk 0:01:16]} 22. Nxe5 {[%clk 0:02:37]}  Qxe5 {[%clk 0:01:17]} 23. dxe4 {[%clk 0:02:36]}  f4 {[%clk 0:01:16]} 24. Rd3 {[%clk 0:02:34]}  c4 {[%clk 0:01:15]} 25. Rd8 {[%clk 0:02:32]} 1-0


[Site "https://www.chess.com"]

[Event "Titled Tuesday Blitz August 31 2021"]
[White "Prydun, Andriy"]
[Black "Ponikarovsky, Alexey"]
[WhiteFideId "14145898"]
[BlackFideId "4122887"]
[WhiteElo "2047"]
[BlackElo "1944"]
[Result "0-1"]
[Round "01"]
[TimeControl "180+1"]
[Date "2021.08.31"]
[WhiteClock "0:00:03"]
[BlackClock "0:00:36"]

1. d4 {[%clk 0:02:57]}  d5 {[%clk 0:02:55]} 2. Nc3 {[%clk 0:02:57]}  c5 {[%clk 0:02:54]} 3. e4 {[%clk 0:02:53]}  cxd4 {[%clk 0:02:54]} 4. Qxd4 {[%clk 0:02:52]}  Nc6 {[%clk 0:02:53]} 5. Bb5 {[%clk 0:02:51]}  e6 {[%clk 0:02:52]} 6. exd5 {[%clk 0:02:45]}  exd5 {[%clk 0:02:53]} 7. Qxd5 {[%clk 0:02:41]}  Bd7 {[%clk 0:02:52]} 8. Nf3 {[%clk 0:02:35]}  Nf6 {[%clk 0:02:51]} 9. Qd2 {[%clk 0:02:13]}  Be7 {[%clk 0:02:51]} 10. O-O {[%clk 0:02:12]}  O-O {[%clk 0:02:51]} 11. Rd1 {[%clk 0:02:10]}  Qb6 {[%clk 0:02:43]} 12. Qf4 {[%clk 0:02:03]}  Bc5 {[%clk 0:02:20]} 13. Be3 {[%clk 0:02:02]}  Bxe3 {[%clk 0:02:18]} 14. Qxe3 {[%clk 0:02:03]}  Qc7 {[%clk 0:02:17]} 15. Rd2 {[%clk 0:01:55]}  Bg4 {[%clk 0:02:13]} 16. h3 {[%clk 0:01:50]}  Bh5 {[%clk 0:02:10]} 17. Nd5 {[%clk 0:01:36]}  Nxd5 {[%clk 0:02:07]} 18. Rxd5 {[%clk 0:01:37]}  Rfe8 {[%clk 0:02:07]} 19. Qc3 {[%clk 0:01:37]}  Bxf3 {[%clk 0:02:04]} 20. Qxf3 {[%clk 0:01:36]}  a6 {[%clk 0:02:03]} 21. Bd3 {[%clk 0:01:35]}  Nb4 {[%clk 0:01:59]} 22. Rd4 {[%clk 0:01:22]}  Nxd3 {[%clk 0:01:54]} 23. Qxd3 {[%clk 0:01:21]}  Rad8 {[%clk 0:01:54]} 24. c3 {[%clk 0:01:11]}  Rxd4 {[%clk 0:01:51]} 25. Qxd4 {[%clk 0:01:12]}  Rd8 {[%clk 0:01:51]} 26. Re1 {[%clk 0:01:11]}  h6 {[%clk 0:01:47]} 27. Qb4 {[%clk 0:01:10]}  Rd2 {[%clk 0:01:44]} 28. c4 {[%clk 0:00:31]}  Qd7 {[%clk 0:01:39]} 29. c5 {[%clk 0:00:25]}  Rc2 {[%clk 0:01:37]} 30. Qe4 {[%clk 0:00:10]}  Rxc5 {[%clk 0:01:34]} 31. Qe8+ {[%clk 0:00:10]}  Qxe8 {[%clk 0:01:34]} 32. Rxe8+ {[%clk 0:00:11]}  Kh7 {[%clk 0:01:35]} 33. Re7 {[%clk 0:00:11]}  b5 {[%clk 0:01:27]} 34. Rxf7 {[%clk 0:00:11]}  Rc1+ {[%clk 0:01:27]} 35. Kh2 {[%clk 0:00:10]}  Rc2 {[%clk 0:01:28]} 36. Ra7 {[%clk 0:00:10]}  Rxf2 {[%clk 0:01:27]} 37. Rxa6 {[%clk 0:00:11]}  Rxb2 {[%clk 0:01:28]} 38. Kg3 {[%clk 0:00:08]}  b4 {[%clk 0:01:26]} 39. Kf3 {[%clk 0:00:08]}  h5 {[%clk 0:01:26]} 40. h4 {[%clk 0:00:08]}  Rc2 {[%clk 0:01:24]} 41. Kg3 {[%clk 0:00:07]}  Rc3+ {[%clk 0:01:24]} 42. Kf4 {[%clk 0:00:07]}  Rc4+ {[%clk 0:01:21]} 43. Kg5 {[%clk 0:00:07]}  Rg4+ {[%clk 0:01:20]} 44. Kxh5 {[%clk 0:00:03]}  Rxg2 {[%clk 0:01:20]} 45. Ra7 {[%clk 0:00:04]}  Rg1 {[%clk 0:01:15]} 46. Rb7 {[%clk 0:00:04]}  Rg3 {[%clk 0:01:14]} 47. Rc7 {[%clk 0:00:03]}  Rg1 {[%clk 0:01:13]} 48. Rb7 {[%clk 0:00:03]}  Rg2 {[%clk 0:01:12]} 49. Rc7 {[%clk 0:00:04]}  Rxa2 {[%clk 0:01:11]} 50. Rb7 {[%clk 0:00:04]}  Rg2 {[%clk 0:01:11]} 51. Rc7 {[%clk 0:00:03]}  b3 {[%clk 0:01:10]} 52. Rb7 {[%clk 0:00:03]}  Rb2 {[%clk 0:01:04]} 53. Kg5 {[%clk 0:00:04]}  Rb1 {[%clk 0:01:04]} 54. Kh5 {[%clk 0:00:04]}  b2 {[%clk 0:01:03]} 55. Kg5 {[%clk 0:00:04]}  Rg1+ {[%clk 0:01:03]} 56. Kh5 {[%clk 0:00:04]}  Rg2 {[%clk 0:00:45]} 57. Rxg7+ {[%clk 0:00:04]}  Kh8 {[%clk 0:00:43]} 58. Rxg2 {[%clk 0:00:03]}  b1=Q {[%clk 0:00:42]} 59. Rg5 {[%clk 0:00:04]}  Qd1+ {[%clk 0:00:40]} 60. Kg6 {[%clk 0:00:03]}  Qd3+ {[%clk 0:00:38]} 61. Kh5 {[%clk 0:00:04]}  Qf3+ {[%clk 0:00:37]} 62. Kg6 {[%clk 0:00:04]}  Qe4+ {[%clk 0:00:36]} 63. Kh5 {[%clk 0:00:05]}  Kh7 {[%clk 0:00:37]} 64. Rb5 {[%clk 0:00:03]}  Qe2+ {[%clk 0:00:36]} 0-1


[Site "https://www.chess.com"]

[Event "Titled Tuesday Blitz August 31 2021"]
[White "Reprintsev, Alexander"]
[Black "Kovalev, Vladislav"]
[WhiteFideId "14100541"]
[BlackFideId "13504398"]
[WhiteElo "2126"]
[BlackElo "2573"]
[Result "0-1"]
[Round "01"]
[TimeControl "180+1"]
[Date "2021.08.31"]
[WhiteClock "0:00:19"]
[BlackClock "0:00:16"]

1. e4 {[%clk 0:02:56]}  e5 {[%clk 0:02:59]} 2. f4 {[%clk 0:02:55]}  exf4 {[%clk 0:02:59]} 3. Bc4 {[%clk 0:02:54]}  Qh4+ {[%clk 0:02:58]} 4. Kf1 {[%clk 0:02:53]}  d5 {[%clk 0:02:57]} 5. Bxd5 {[%clk 0:02:51]}  Nf6 {[%clk 0:02:52]} 6. Nf3 {[%clk 0:02:51]}  Qh5 {[%clk 0:02:40]} 7. Nc3 {[%clk 0:02:49]}  c6 {[%clk 0:02:40]} 8. Bc4 {[%clk 0:02:48]}  Bg4 {[%clk 0:02:36]} 9. d3 {[%clk 0:02:44]}  Bd6 {[%clk 0:02:10]} 10. Kf2 {[%clk 0:02:43]}  Nbd7 {[%clk 0:02:07]} 11. h3 {[%clk 0:02:42]}  Bc5+ {[%clk 0:01:19]} 12. Kf1 {[%clk 0:02:41]}  Ne5 {[%clk 0:01:15]} 13. Rh2 {[%clk 0:02:23]}  Nxf3 {[%clk 0:01:08]} 14. gxf3 {[%clk 0:02:23]}  Bxh3+ {[%clk 0:01:04]} 15. Ke1 {[%clk 0:02:13]}  Bg1 {[%clk 0:00:53]} 16. Bxf4 {[%clk 0:01:50]}  Qh4+ {[%clk 0:00:49]} 17. Ke2 {[%clk 0:01:49]}  Bxh2 {[%clk 0:00:46]} 18. Bxh2 {[%clk 0:01:49]}  Be6 {[%clk 0:00:46]} 19. Qg1 {[%clk 0:01:29]}  Bxc4 {[%clk 0:00:46]} 20. dxc4 {[%clk 0:01:30]}  O-O-O {[%clk 0:00:43]} 21. Qg3 {[%clk 0:01:29]}  Qxg3 {[%clk 0:00:43]} 22. Bxg3 {[%clk 0:01:29]}  Nh5 {[%clk 0:00:43]} 23. Bh2 {[%clk 0:01:28]}  g5 {[%clk 0:00:39]} 24. a4 {[%clk 0:01:26]}  h6 {[%clk 0:00:37]} 25. b3 {[%clk 0:01:26]}  f5 {[%clk 0:00:35]} 26. Rh1 {[%clk 0:01:24]}  f4 {[%clk 0:00:35]} 27. Nd1 {[%clk 0:01:16]}  Rd7 {[%clk 0:00:34]} 28. Nf2 {[%clk 0:01:16]}  Ng7 {[%clk 0:00:26]} 29. Nd3 {[%clk 0:01:14]}  Ne6 {[%clk 0:00:27]} 30. Bg1 {[%clk 0:01:12]}  Nd4+ {[%clk 0:00:28]} 31. Bxd4 {[%clk 0:01:12]}  Rxd4 {[%clk 0:00:29]} 32. Rh5 {[%clk 0:01:11]}  Kc7 {[%clk 0:00:28]} 33. a5 {[%clk 0:01:10]}  b6 {[%clk 0:00:29]} 34. axb6+ {[%clk 0:01:10]}  axb6 {[%clk 0:00:30]} 35. Rh1 {[%clk 0:01:03]}  Rh7 {[%clk 0:00:29]} 36. Rh5 {[%clk 0:01:02]}  Rd6 {[%clk 0:00:29]} 37. Kf2 {[%clk 0:01:00]}  Re6 {[%clk 0:00:29]} 38. Ne1 {[%clk 0:00:39]}  Kd6 {[%clk 0:00:29]} 39. Nd3 {[%clk 0:00:39]}  Ke7 {[%clk 0:00:29]} 40. Kg2 {[%clk 0:00:38]}  Kf6 {[%clk 0:00:30]} 41. Kf2 {[%clk 0:00:38]}  Kg6 {[%clk 0:00:30]} 42. Rh1 {[%clk 0:00:38]}  h5 {[%clk 0:00:30]} 43. c5 {[%clk 0:00:38]}  b5 {[%clk 0:00:30]} 44. Rg1 {[%clk 0:00:36]}  Kf6 {[%clk 0:00:31]} 45. Rh1 {[%clk 0:00:26]}  h4 {[%clk 0:00:31]} 46. Kg2 {[%clk 0:00:24]}  Ra7 {[%clk 0:00:31]} 47. Kh3 {[%clk 0:00:23]}  Kg6 {[%clk 0:00:21]} 48. Kg4 {[%clk 0:00:22]}  Rh7 {[%clk 0:00:21]} 49. Rh3 {[%clk 0:00:22]}  Kf6 {[%clk 0:00:20]} 50. Nf2 {[%clk 0:00:22]}  Re8 {[%clk 0:00:20]} 51. Nd3 {[%clk 0:00:22]}  Rd8 {[%clk 0:00:20]} 52. e5+ {[%clk 0:00:21]}  Kg6 {[%clk 0:00:19]} 53. Rh2 {[%clk 0:00:21]}  Rd5 {[%clk 0:00:15]} 54. Kh3 {[%clk 0:00:20]}  Kf5 {[%clk 0:00:15]} 55. Re2 {[%clk 0:00:20]}  Re7 {[%clk 0:00:15]} 56. b4 {[%clk 0:00:18]}  Rxd3 {[%clk 0:00:11]} 57. cxd3 {[%clk 0:00:16]}  Rxe5 {[%clk 0:00:12]} 58. Rg2 {[%clk 0:00:15]}  Re3 {[%clk 0:00:12]} 59. Rf2 {[%clk 0:00:15]}  Rxd3 {[%clk 0:00:10]} 60. Kg2 {[%clk 0:00:15]}  Rb3 {[%clk 0:00:09]} 61. Rd2 {[%clk 0:00:16]}  Rxb4 {[%clk 0:00:10]} 62. Rd6 {[%clk 0:00:16]}  Rb2+ {[%clk 0:00:10]} 63. Kh3 {[%clk 0:00:16]}  Rb3 {[%clk 0:00:11]} 64. Rxc6 {[%clk 0:00:17]}  Rxf3+ {[%clk 0:00:11]} 65. Kh2 {[%clk 0:00:18]}  Rc3 {[%clk 0:00:12]} 66. Rc8 {[%clk 0:00:17]}  Kg4 {[%clk 0:00:13]} 67. c6 {[%clk 0:00:18]}  Rc2+ {[%clk 0:00:13]} 68. Kg1 {[%clk 0:00:18]}  Kg3 {[%clk 0:00:14]} 69. Kf1 {[%clk 0:00:19]}  h3 {[%clk 0:00:15]} 70. Ke1 {[%clk 0:00:19]}  h2 {[%clk 0:00:15]} 71. Rh8 {[%clk 0:00:19]}  Rxc6 {[%clk 0:00:16]} 72. Ke2 {[%clk 0:00:19]}  g4 {[%clk 0:00:16]} 0-1


[Site "https://www.chess.com"]

[Event "Titled Tuesday Blitz August 31 2021"]
[White "Seemann, Jakub"]
[Black "Indjic, Aleksandar"]
[WhiteFideId "21874697"]
[BlackFideId "911925"]
[WhiteElo "1805"]
[BlackElo "2643"]
[Result "0-1"]
[Round "01"]
[TimeControl "180+1"]
[Date "2021.08.31"]
[WhiteClock "0:00:04"]
[BlackClock "0:00:58"]

1. Nf3 {[%clk 0:02:57]}  d5 {[%clk 0:02:57]} 2. g3 {[%clk 0:02:42]}  Nc6 {[%clk 0:02:57]} 3. d4 {[%clk 0:02:42]}  Bf5 {[%clk 0:02:56]} 4. Bg2 {[%clk 0:02:42]}  Nb4 {[%clk 0:02:56]} 5. Na3 {[%clk 0:02:41]}  e6 {[%clk 0:02:56]} 6. c3 {[%clk 0:02:42]}  Nc6 {[%clk 0:02:54]} 7. Nc2 {[%clk 0:02:42]}  h6 {[%clk 0:02:53]} 8. O-O {[%clk 0:02:42]}  Nf6 {[%clk 0:02:53]} 9. b3 {[%clk 0:02:35]}  Be7 {[%clk 0:02:52]} 10. Bb2 {[%clk 0:02:34]}  O-O {[%clk 0:02:51]} 11. c4 {[%clk 0:02:32]}  a5 {[%clk 0:02:42]} 12. cxd5 {[%clk 0:02:31]}  exd5 {[%clk 0:02:41]} 13. Ne5 {[%clk 0:02:30]}  Nb4 {[%clk 0:02:37]} 14. Ne3 {[%clk 0:02:22]}  Be4 {[%clk 0:02:37]} 15. Bxe4 {[%clk 0:02:13]}  Nxe4 {[%clk 0:02:35]} 16. a3 {[%clk 0:02:13]}  Na6 {[%clk 0:02:34]} 17. Nf5 {[%clk 0:02:13]}  c6 {[%clk 0:02:33]} 18. Nxe7+ {[%clk 0:02:11]}  Qxe7 {[%clk 0:02:32]} 19. Re1 {[%clk 0:01:50]}  Rfe8 {[%clk 0:02:31]} 20. Qc2 {[%clk 0:01:47]}  Nd6 {[%clk 0:02:27]} 21. Rad1 {[%clk 0:01:39]}  Nc7 {[%clk 0:02:26]} 22. e3 {[%clk 0:01:28]}  f6 {[%clk 0:02:24]} 23. Nd3 {[%clk 0:01:27]}  Ne6 {[%clk 0:02:21]} 24. Kg2 {[%clk 0:01:23]}  Ng5 {[%clk 0:02:20]} 25. Nf4 {[%clk 0:01:18]}  Ne6 {[%clk 0:02:12]} 26. Nd3 {[%clk 0:01:16]}  Qf7 {[%clk 0:02:07]} 27. a4 {[%clk 0:01:15]}  Ng5 {[%clk 0:02:03]} 28. Nf4 {[%clk 0:01:10]}  Ne6 {[%clk 0:01:59]} 29. Nd3 {[%clk 0:01:09]}  Ne4 {[%clk 0:01:58]} 30. f3 {[%clk 0:01:05]}  Nd6 {[%clk 0:01:56]} 31. e4 {[%clk 0:01:04]}  dxe4 {[%clk 0:01:55]} 32. fxe4 {[%clk 0:01:03]}  Ng5 {[%clk 0:01:55]} 33. Nf2 {[%clk 0:00:54]}  Ndxe4 {[%clk 0:01:55]} 34. Nxe4 {[%clk 0:00:53]}  Rxe4 {[%clk 0:01:53]} 35. Rxe4 {[%clk 0:00:45]}  Qd5 {[%clk 0:01:53]} 36. Re1 {[%clk 0:00:44]}  Re8 {[%clk 0:01:53]} 37. Qc4 {[%clk 0:00:44]}  Rxe4 {[%clk 0:01:52]} 38. Rxe4 {[%clk 0:00:34]}  Nxe4 {[%clk 0:01:50]} 39. Qxd5+ {[%clk 0:00:29]}  cxd5 {[%clk 0:01:51]} 40. Bc1 {[%clk 0:00:28]}  Kf7 {[%clk 0:01:51]} 41. Kf3 {[%clk 0:00:27]}  Ke6 {[%clk 0:01:51]} 42. Ke3 {[%clk 0:00:26]}  h5 {[%clk 0:01:50]} 43. Ba3 {[%clk 0:00:26]}  g5 {[%clk 0:01:49]} 44. b4 {[%clk 0:00:26]}  axb4 {[%clk 0:01:48]} 45. Bxb4 {[%clk 0:00:27]}  Nd6 {[%clk 0:01:36]} 46. Kd3 {[%clk 0:00:15]}  Nc4 {[%clk 0:01:34]} 47. Bc3 {[%clk 0:00:11]}  Kf5 {[%clk 0:01:34]} 48. h3 {[%clk 0:00:11]}  Nd6 {[%clk 0:01:28]} 49. Ke3 {[%clk 0:00:09]}  Ne4 {[%clk 0:01:27]} 50. Be1 {[%clk 0:00:10]}  Ke6 {[%clk 0:01:27]} 51. g4 {[%clk 0:00:09]}  hxg4 {[%clk 0:01:18]} 52. hxg4 {[%clk 0:00:09]}  Kd6 {[%clk 0:01:14]} 53. Kd3 {[%clk 0:00:08]}  Kc6 {[%clk 0:01:13]} 54. Kc2 {[%clk 0:00:08]}  Nd6 {[%clk 0:01:11]} 55. Kb3 {[%clk 0:00:06]}  Nf7 {[%clk 0:01:10]} 56. Kb4 {[%clk 0:00:04]}  Nh6 {[%clk 0:01:09]} 57. Ka5 {[%clk 0:00:04]}  Nxg4 {[%clk 0:01:09]} 58. Bb4 {[%clk 0:00:05]}  Nh6 {[%clk 0:01:03]} 59. Be7 {[%clk 0:00:05]}  Ng8 {[%clk 0:01:03]} 60. Bd8 {[%clk 0:00:05]}  g4 {[%clk 0:01:02]} 61. Bb6 {[%clk 0:00:03]}  g3 {[%clk 0:01:01]} 62. Bc5 {[%clk 0:00:04]}  g2 {[%clk 0:01:01]} 63. Bb4 {[%clk 0:00:05]}  g1=Q {[%clk 0:01:00]} 64. Bc5 {[%clk 0:00:06]}  Qe1+ {[%clk 0:00:59]} 65. Bb4 {[%clk 0:00:06]}  Qe2 {[%clk 0:00:59]} 66. Bc5 {[%clk 0:00:04]}  Qc4 {[%clk 0:00:58]} 67. Bb4 {[%clk 0:00:04]}  b6# {[%clk 0:00:58]} 0-1


[Site "https://www.chess.com"]